bitfinex/quotes_ETHUSD_20250721
["timestamp","ask_amount","ask_price","bid_price","bid_amount"]
[1753130707926,1e-08,3754.0,3753.9,11.16453517]
[1753130708129,1e-08,3754.0,3753.9,5.66389621]
[1753130708287,1e-08,3754.0,3753.9,9.81853517]
[1753130708486,1e-08,3754.0,3753.9,9.79189621]
[1753130708720,1e-08,3754.0,3753.9,10.34189621]
[1753130709098,1e-08,3754.0,3753.9,6.21389621]
[1753130709300,1e-08,3754.0,3753.9,18.96265686]
[1753130709493,1e-08,3754.0,3753.9,19.8327179]
[1753130710533,1e-08,3754.0,3753.9,12.6783581]
[1753130712828,1e-08,3754.0,3753.9,8.5513581]
[1753130713128,1e-08,3754.0,3753.9,12.2150581]
[1753130713491,1e-08,3754.0,3753.9,8.0880581]
[1753130713695,1e-08,3754.0,3753.9,12.2150581]
[1753130714432,1e-08,3754.0,3753.9,12.6783581]
[1753130716398,1e-08,3754.0,3753.9,8.0880581]
[1753130716597,1e-08,3754.0,3753.9,3.0]
[1753130716835,1e-08,3754.0,3753.5,2.66413644]
[1753130717052,0.1328,3753.9,3753.6,4.15364109]
[1753130717348,0.1328,3753.9,3753.6,4.127]
[1753130717635,0.4748,3753.8,3753.6,4.127]
[1753130718012,0.4748,3753.8,3753.7,4.127]
[1753130718219,0.4748,3753.8,3753.7,6.79103814]
[1753130718430,0.1328,3753.9,3753.7,6.79103814]
[1753130718724,0.6076,3753.9,3753.7,4.127]
[1753130719298,0.4748,3753.8,3753.7,4.127]
[1753130719695,0.1328,3753.9,3753.7,6.79103012]
[1753130720128,0.1328,3753.9,3753.7,4.127]
[1753130720498,0.6076,3753.9,3753.7,4.127]
[1753130720833,0.4748,3753.8,3753.4,0.55]
[1753130721019,0.6076,3753.7,3753.5,4.127]
[1753130722538,0.6076,3753.7,3753.6,4.126]
[1753130724134,0.1328,3753.7,3753.6,4.126]
[1753130724504,0.1328,3753.7,3753.4,0.55]
[1753130724700,0.1328,3753.7,3753.5,4.126]
[1753130725026,0.1328,3753.7,3753.6,4.126]
[1753130725940,0.1328,3753.7,3753.6,4.127]
[1753130727744,0.1328,3753.7,3753.6,6.79110912]
[1753130728038,0.6076,3753.7,3753.6,4.127]
[1753130730041,0.1328,3753.7,3753.6,6.79110912]
[1753130730341,0.1328,3753.7,3753.6,8.37553904]
[1753130730506,0.1328,3753.7,3753.6,4.127]
[1753130731437,0.1328,3753.7,3753.6,0.001]
[1753130731628,0.1328,3753.7,3753.6,4.127]
[1753130733039,0.1328,3753.7,3753.6,0.001]
[1753130733218,3.27163814,3753.7,3753.6,0.001]
[1753130733422,4.40770195,3753.7,3753.6,4.127]
[1753130733937,1.74366381,3753.7,3753.6,4.127]
[1753130734442,4.40770195,3753.7,3753.6,4.127]
[1753130736012,1.74366381,3753.7,3753.6,4.127]
[1753130736207,0.9417,3753.7,3753.6,4.127]
[1753130736442,4.08053814,3753.7,3753.6,4.127]
[1753130736738,4.08053814,3753.7,3753.6,4.126]
[1753130738139,1.4165,3753.7,3753.6,4.126]
[1753130738542,4.08053814,3753.7,3753.6,4.126]
[1753130738909,1.4165,3753.7,3753.6,4.126]
[1753130739312,0.9417,3753.7,3753.6,4.126]
[1753130739514,0.1328,3753.7,3753.6,4.126]
[1753130739916,0.1328,3753.7,3753.6,6.79010912]
[1753130743752,0.1328,3753.7,3753.6,4.126]
[1753130744760,0.1328,3753.7,3753.6,6.79010912]
[1753130745057,0.1328,3753.7,3753.6,4.126]
[1753130745268,0.6076,3753.7,3753.6,4.126]
[1753130745561,0.1328,3753.7,3753.6,4.126]
[1753130745760,0.1328,3753.7,3753.6,2.66510912]
[1753130745919,0.6076,3753.7,3753.6,6.79010912]
[1753130746120,0.1328,3753.7,3753.6,6.79010912]
[1753130746463,1e-08,3754.0,3753.9,2.66389621]
[1753130746664,1e-08,3754.0,3753.9,10.33789621]
[1753130747040,1e-08,3754.0,3753.9,10.79229621]
[1753130747972,1e-08,3754.0,3753.9,11.58419621]
[1753130750672,1e-08,3754.0,3753.9,3.0]
[1753130750965,0.47240001,3754.0,3753.6,0.001]
[1753130751269,0.1328,3753.8,3753.6,0.001]
[1753130751566,0.4724,3753.9,3753.7,4.123]
[1753130751766,3.44963614,3754.0,3753.7,4.123]
[1753130751938,0.4724,3753.8,3753.7,4.123]
[1753130754263,0.78580001,3754.0,3753.7,4.123]
[1753130754646,1.25820001,3754.0,3753.7,4.123]
[1753130755566,0.4724,3753.9,3753.7,4.123]
[1753130755763,0.4724,3753.8,3753.7,4.123]
[1753130757276,0.1328,3753.7,3753.6,0.001]
[1753130757752,0.1328,3753.7,3753.6,4.124]
[1753130758854,0.6052,3753.7,3753.6,4.124]
[1753130760686,0.6052,3753.7,3753.6,0.001]
[1753130760876,0.6052,3753.7,3753.6,4.124]
[1753130761483,0.6052,3753.7,3753.6,0.001]
[1753130761788,0.6052,3753.7,3753.6,4.123]
[1753130761989,0.6052,3753.7,3753.6,0.001]
[1753130762155,0.6052,3753.7,3753.6,4.123]
[1753130762659,0.1328,3753.7,3753.6,4.123]
[1753130763897,0.1328,3753.7,3753.6,6.78710912]
[1753130764501,0.1328,3753.7,3753.6,4.123]
[1753130764698,0.6052,3753.7,3753.6,0.001]
[1753130764869,3.40833814,3753.7,3753.6,4.123]
[1753130765201,0.7443,3753.7,3753.6,4.123]
[1753130766198,0.6052,3753.7,3753.6,4.123]
[1753130770667,3.26923814,3753.7,3753.6,4.122]
[1753130771069,0.6052,3753.7,3753.6,4.122]
[1753130772599,0.6052,3753.7,3753.6,0.001]
[1753130772800,4.07883814,3753.7,3753.6,0.001]
[1753130773003,5.73494435,3753.7,3753.6,0.001]
[1753130778004,10.60815285,3753.2,3753.1,0.00100001]
[1753130778485,11.07755285,3753.2,3753.1,0.00100001]
[1753130778676,14.07755285,3753.2,3753.1,0.00100001]
[1753130778875,15.35628373,3753.2,3753.1,0.00100001]
[1753130785012,3.48050603,3752.9,3752.8,0.001]
[1753130785194,10.60050603,3752.9,3752.8,0.001]
[1753130785515,11.06990603,3752.9,3752.8,0.001]
[1753130786520,3.49176109,3752.4,3752.3,0.001]
[1753130787290,2.66449244,3753.1,3752.3,2.66602605]
[1753130787291,0.8268,3753.1,3752.3,2.66602605]
[1753130787599,2.66478048,3752.7,3752.4,0.7888]
[1753130788009,2.66469997,3752.8,3752.4,0.7888]
[1753130788209,2.66462816,3752.9,3752.4,0.7888]
[1753130788880,3.4912759,3753.1,3752.4,1.2375]
[1753130789217,2.66469027,3752.8,3752.4,1.2375]
[1753130789718,2.66462993,3752.9,3752.4,1.2375]
[1753130790314,2.6646199,3752.9,3752.4,1.2375]
[1753130790489,2.6646199,3752.9,3752.4,1.2385]
[1753130791083,0.823,3753.4,3752.5,0.4487]
[1753130791304,0.823,3753.4,3752.6,2.66481383]
[1753130791506,0.4694,3753.5,3752.7,0.4487]
[1753130791710,2.66452577,3753.1,3752.7,0.4487]
[1753130791987,0.1328,3752.7,3752.5,2.66488541]
[1753130792215,2.66447992,3753.1,3752.5,3.11358541]
[1753130792416,2.66453549,3753.0,3752.5,0.4487]
[1753130793418,0.1328,3752.5,3752.4,0.7898]
[1753130793623,0.1328,3752.5,3752.4,4.9098]
[1753130794026,0.1328,3752.5,3752.4,4.121]
[1753130794319,0.1328,3752.5,3752.4,4.5697]
[1753130794521,0.1328,3752.5,3752.4,9.01233109]
[1753130794702,2.66416395,3753.6,3753.0,2.66453349]
[1753130795019,2.66419045,3753.5,3753.1,5.3261]
[1753130795609,0.002,3753.7,3753.1,5.3261]
[1753130795812,2.66437566,3753.3,3753.1,4.8774]
[1753130796002,2.66437566,3753.3,3753.1,4.119]
[1753130797221,0.1328,3753.1,3752.8,0.7634]
[1753130797421,2.66453503,3753.0,3752.9,4.119]
[1753130797609,0.4694,3753.2,3752.5,0.7727]
[1753130797915,2.6646095,3752.9,3752.6,4.119]
[1753130798517,2.66470023,3752.8,3752.6,4.119]
[1753130798721,2.66462724,3752.9,3752.6,4.119]
[1753130799137,0.1328,3752.6,3752.4,0.001]
[1753130799441,2.66474804,3752.7,3752.5,4.119]
[1753130799800,0.1328,3752.5,3752.4,0.001]
[1753130799999,0.1328,3752.5,3752.4,4.119]
[1753130800194,0.1328,3752.5,3752.4,0.001]
[1753130800195,2.79769007,3752.5,3752.4,0.001]
[1753130800500,3.86027986,3752.5,3752.4,4.119]
[1753130801095,3.86027986,3752.5,3752.4,0.001]
[1753130801325,0.1328,3752.5,3752.4,0.001]
[1753130801649,0.83320001,3754.0,3752.6,2.66481905]
[1753130801944,0.83320001,3754.0,3752.5,1.3064]
[1753130801945,2.66391557,3753.9,3753.2,2.66435168]
[1753130802090,2.66391557,3753.9,3753.3,6.78231884]
[1753130802294,2.66391557,3753.9,3753.3,4.118]
[1753130802495,2.66391557,3753.9,3753.4,0.4487]
[1753130803324,2.66398095,3753.8,3753.4,0.4487]
[1753130804613,2.66390392,3753.9,3753.4,0.4487]
[1753130805095,2.66390392,3753.9,3753.3,4.118]
[1753130805301,0.1348,3753.7,3753.6,2.66410912]
[1753130805498,0.1348,3753.7,3753.6,2.69075021]
[1753130805744,0.002,3753.7,3753.6,3.66280912]
[1753130805966,0.002,3753.7,3753.6,4.50075021]
[1753130806253,0.002,3753.7,3753.6,5.97657332]
[1753130806945,0.002,3753.7,3753.6,6.67657332]
[1753130809538,0.002,3753.7,3753.6,10.79357332]
[1753130809742,0.002,3753.7,3753.6,10.76693223]
[1753130810503,0.002,3753.7,3753.6,13.76693223]
[1753130812216,0.002,3753.7,3753.6,13.76593223]
[1753130812642,0.002,3753.7,3753.6,9.64993223]
[1753130813011,0.002,3753.7,3753.6,13.76593223]
[1753130815559,0.002,3753.7,3753.6,9.64993223]
[1753130815714,0.002,3753.7,3753.6,13.76493223]
[1753130818317,0.002,3754.5,3753.7,0.55]
[1753130818537,0.002,3754.5,3754.4,3.98284144]
[1753130818734,0.002,3754.8,3754.7,6.21332862]
[1753130818935,0.002,3754.8,3754.7,11.1232619]
[1753130819140,0.002,3754.8,3754.7,11.09662862]
[1753130819340,0.002,3754.8,3754.7,11.54532862]
[1753130819541,0.002,3754.8,3754.7,13.23255697]
[1753130820339,1e-08,3754.8,3754.7,13.23255697]
[1753130820650,1e-08,3754.9,3754.8,6.98255769]
[1753130820852,1e-08,3754.9,3754.8,7.43125769]
[1753130821565,1e-08,3754.9,3754.8,11.09655769]
[1753130821782,1e-08,3754.9,3754.8,13.13483916]
[1753130825533,1e-08,3754.9,3754.8,13.13383916]
[1753130826875,1e-08,3754.9,3754.8,8.02213916]
[1753130827033,1e-08,3754.9,3754.8,12.13413916]
[1753130827227,1e-08,3754.9,3754.8,8.47083916]
[1753130827450,1e-08,3754.9,3754.8,12.58283916]
[1753130827734,1e-08,3754.9,3754.8,13.13283916]
[1753130828565,1e-08,3754.9,3754.8,13.26563916]
[1753130829175,1e-08,3755.3,3755.2,6.212974]
[1753130829375,1e-08,3755.3,3755.2,12.11051379]
[1753130829575,1e-08,3755.3,3755.2,12.66538405]
[1753130829769,0.1328,3756.7,3755.8,3.21254859]
[1753130829964,1.2549,3756.9,3755.8,3.21254859]
[1753130829965,0.826,3756.9,3755.8,11.24227407]
[1753130830166,0.4489,3756.9,3755.8,11.66434859]
[1753130830369,0.02,3756.9,3756.7,3.21191071]
[1753130830547,0.02,3756.9,3756.7,7.32391071]
[1753130831479,0.02,3756.9,3756.7,4.662]
[1753130832054,0.02,3756.9,3756.7,4.6886191]
[1753130832283,0.02,3756.9,3756.7,7.35052981]
[1753130832458,0.02,3756.9,3756.7,7.32391071]
[1753130833281,0.02,3756.9,3756.7,4.662]
[1753130833463,0.02,3756.9,3756.7,7.35052981]
[1753130833782,0.02,3756.9,3756.7,4.662]
[1753130833980,0.02,3756.9,3756.7,4.6886191]
[1753130835455,0.02,3756.9,3756.7,7.35052981]
[1753130835655,0.02,3756.9,3756.7,7.32391071]
[1753130835875,0.02,3756.9,3756.7,4.662]
[1753130836079,0.02,3756.9,3756.7,4.6886191]
[1753130836882,0.02,3756.9,3756.7,5.3886191]
[1753130841180,0.02,3756.9,3756.7,1.2766191]
[1753130841359,3.95393986,3756.8,3756.7,4.809]
[1753130841559,4.61750966,3756.8,3756.7,4.809]
[1753130841995,3.48963986,3756.8,3756.7,4.809]
[1753130842177,3.95393986,3756.8,3756.7,4.809]
[1753130842654,3.95393986,3756.8,3756.7,0.7]
[1753130842856,1.2921,3756.8,3756.7,4.809]
[1753130844113,1.2921,3756.8,3755.6,0.8046]
[1753130844338,0.1328,3756.4,3756.0,2.66240182]
[1753130844485,2.10358673,3756.7,3756.1,6.79794942]
[1753130844817,0.1328,3756.3,3756.1,4.109]
[1753130845226,0.7942,3756.7,3756.4,2.6620642]
[1753130845397,0.1328,3756.6,3756.5,4.109]
[1753130845598,0.1328,3756.6,3756.5,6.77105244]
[1753130845820,0.1328,3756.6,3756.5,4.109]
[1753130846594,0.1328,3756.6,3756.5,6.77105244]
[1753130847517,0.1328,3756.6,3756.5,4.109]
[1753130847685,0.1328,3756.6,3756.5,6.77105244]
[1753130848719,0.1328,3756.6,3756.5,4.109]
[1753130848921,0.1328,3756.6,3756.5,6.77105244]
[1753130850115,0.5971,3756.6,3756.2,0.55]
[1753130850299,2.66384651,3756.8,3756.1,2.6622943]
[1753130850300,0.7936,3756.4,3756.1,2.6622943]
[1753130850504,0.1328,3756.3,3756.2,6.77026505]
[1753130854392,0.7936,3756.7,3756.6,2.66198157]
[1753130854737,0.002,3756.8,3756.6,4.108]
[1753130855229,0.1328,3756.6,3756.5,0.7]
[1753130855450,1.4094,3756.6,3756.5,4.108]
[1753130855586,1.81871809,3756.6,3756.5,4.108]
[1753130856023,1.4094,3756.6,3756.5,4.108]
[1753130856587,0.9451,3756.6,3756.5,6.77005244]
[1753130857016,0.1328,3756.6,3756.5,6.77005244]
[1753130858130,0.5971,3756.6,3756.5,6.77005244]
[1753130858347,0.5971,3756.6,3756.5,4.108]
[1753130858912,0.5971,3756.6,3756.5,6.77005244]
[1753130859842,0.5971,3756.6,3756.5,4.108]
[1753130860052,0.5971,3756.6,3756.5,6.77005244]
[1753130860721,0.5971,3756.6,3756.5,7.47005244]
[1753130861529,0.5971,3756.6,3756.5,4.808]
[1753130861728,0.5971,3756.6,3756.5,4.807]
[1753130862249,0.5971,3756.6,3756.5,7.46905244]
[1753130862743,0.5971,3756.6,3756.5,0.7]
[1753130862944,0.5971,3756.6,3756.5,4.807]
[1753130865279,0.5971,3756.6,3756.5,7.46905244]
[1753130866181,0.1328,3756.6,3756.5,7.46905244]
[1753130869786,0.1328,3756.6,3756.5,4.807]
[1753130869951,0.6053,3756.6,3756.5,4.807]
[1753130871265,0.1328,3756.6,3756.5,7.46905244]
[1753130874793,0.1328,3756.6,3756.5,4.807]
[1753130874962,0.1328,3756.6,3756.5,7.46905244]
[1753130877372,0.6053,3756.6,3756.5,4.807]
[1753130878175,0.6073,3756.6,3756.5,4.807]
[1753130881388,0.1348,3756.6,3756.5,7.46905244]
[1753130882688,0.1348,3756.6,3756.5,4.807]
[1753130883321,0.1348,3756.6,3756.5,7.46905244]
[1753130883500,0.1348,3756.6,3756.5,7.46605244]
[1753130884433,2.66158145,3757.2,3756.5,7.46605244]
[1753130884434,0.02,3757.9,3756.6,11.195255]
[1753130884639,0.02,3757.9,3757.8,7.04173151]
[1753130884921,1e-08,3757.9,3757.8,18.4038765]
[1753130885120,1e-08,3757.9,3757.8,19.03569873]
[1753130885331,1e-08,3757.9,3757.8,14.48164744]
[1753130885490,1e-08,3757.9,3757.8,19.87684079]
[1753130886205,0.71247692,3760.2,3757.8,16.36240928]
[1753130886392,1.04675926,3760.6,3759.7,0.55]
[1753130886597,0.7771,3760.8,3759.8,0.02659715]
[1753130886890,0.4725,3760.5,3759.9,6.76962907]
[1753130887213,0.4725,3760.5,3760.0,4.11]
[1753130887429,3.436118,3760.8,3760.0,4.13659574]
[1753130887595,0.7771,3760.8,3760.1,0.55]
[1753130887797,0.24821323,3761.2,3761.1,2.65879662]
[1753130888144,1.43024423,3761.8,3761.1,2.65879662]
[1753130888145,0.24821323,3762.2,3761.4,0.55]
[1753130888349,0.24821323,3762.2,3761.2,4.24967966]
[1753130888350,0.4725,3762.4,3761.6,0.55]
[1753130888530,0.4725,3762.4,3761.8,0.55]
[1753130888879,5.04112605,3763.1,3762.5,2.65779869]
[1753130888880,0.24821323,3762.8,3762.5,2.65779869]
[1753130889031,0.57425926,3764.2,3762.8,10.4414984]
[1753130889234,1.9069923,3764.7,3763.1,3.0]
[1753130889449,0.4725,3764.6,3763.2,1.62772918]
[1753130889664,0.4725,3764.6,3763.2,0.46037312]
[1753130889970,2.65677951,3764.0,3763.0,3.0]
[1753130890147,0.4725,3763.9,3763.1,0.02657383]
[1753130890336,0.56886157,3764.3,3763.2,0.55]
[1753130890531,0.4725,3764.7,3763.6,2.65700011]
[1753130890745,0.4725,3764.7,3763.7,4.21356959]
[1753130890968,2.65688931,3763.8,3763.1,0.55]
[1753130891132,0.8164,3763.8,3763.2,0.02657312]
[1753130891338,2.6571717,3763.4,3762.4,4.187]
[1753130891537,2.65773667,3762.6,3762.5,4.187]
[1753130891732,0.73827367,3762.6,3761.8,0.02658301]
[1753130892036,2.6578073,3762.5,3761.9,4.192]
[1753130892245,0.73827367,3762.6,3761.4,0.02658584]
[1753130892246,0.8014,3762.6,3761.4,0.02658584]
[1753130892436,2.65809215,3762.1,3761.5,4.192]
[1753130892669,0.4725,3763.7,3762.3,3.0]
[1753130892849,0.8014,3763.9,3762.5,0.55]
[1753130893049,2.65743355,3763.1,3762.6,0.02657736]
[1753130893249,2.92317691,3763.1,3762.7,4.2]
[1753130893442,2.65745677,3763.0,3762.8,0.02657595]
[1753130893637,0.26574336,3763.1,3762.9,0.7]
[1753130893845,0.8014,3763.9,3762.9,0.7]
[1753130894039,0.4725,3763.8,3763.0,2.68402554]
[1753130894252,0.4725,3763.8,3763.0,0.02657454]
[1753130894546,0.1328,3763.5,3763.0,0.02657454]
[1753130894766,0.4725,3764.1,3763.1,0.55]
[1753130894964,0.1328,3763.7,3763.3,0.55]
[1753130895167,0.1328,3763.7,3763.4,0.02657171]
[1753130895563,0.1328,3763.7,3763.5,4.218]
[1753130895564,0.6053,3763.7,3763.5,4.218]
[1753130895773,0.1328,3763.7,3763.0,0.1328]
[1753130895953,0.1328,3763.2,3762.6,0.1328]
[1753130896153,0.7937,3763.4,3762.7,4.217]
[1753130896154,0.1328,3762.9,3762.7,4.217]
[1753130896361,0.6053,3762.9,3762.4,0.02657877]
[1753130896562,2.65772133,3762.7,3762.5,4.217]
[1753130896882,0.79880213,3762.6,3761.9,0.1328]
[1753130897054,0.1328,3762.4,3762.0,4.215]
[1753130897578,0.7937,3763.4,3762.4,2.65781156]
[1753130897579,3.09202563,3763.2,3762.4,2.65781156]
[1753130897747,0.4347,3764.1,3763.1,0.55]
[1753130897944,0.1328,3763.5,3763.2,4.24057312]
[1753130898177,0.4347,3763.4,3762.9,0.1328]
[1753130898376,0.1328,3763.3,3763.0,0.55]
[1753130898542,0.1328,3763.3,3763.1,0.02657383]
[1753130898745,0.1328,3763.3,3763.2,2.65731292]
[1753130898947,0.002,3763.4,3763.3,6.20724231]
[1753130899192,0.002,3763.4,3763.3,6.66581473]
[1753130899345,0.002,3763.4,3763.3,6.63924231]
[1753130899550,0.002,3763.4,3763.3,10.86624231]
[1753130899945,0.8314,3765.1,3763.7,0.55]
[1753130900281,0.4347,3765.5,3764.8,2.65613252]
[1753130900593,0.4347,3765.5,3764.9,6.90863242]
[1753130900792,0.4347,3765.5,3764.9,4.226]
[1753130900994,0.4347,3765.5,3765.0,2.65597371]
[1753130901217,2.65535825,3766.0,3765.1,0.57655971]
[1753130901218,0.4347,3765.8,3765.1,0.57655971]
[1753130901377,0.30900582,3765.7,3764.4,2.65646583]
[1753130901566,0.4347,3765.6,3764.5,0.02656395]
[1753130901759,2.65568981,3765.5,3764.6,4.226]
[1753130901995,0.4347,3765.6,3764.7,0.02656254]
[1753130902169,2.65581315,3765.4,3764.7,0.02656254]
[1753130902369,0.4347,3765.6,3764.7,0.57656254]
[1753130902576,0.4347,3765.6,3764.7,0.55]
[1753130902765,0.4347,3765.6,3764.6,4.226]
[1753130902965,2.65568981,3765.5,3764.6,4.226]
[1753130903186,0.30903898,3765.4,3764.6,4.226]
[1753130903404,2.65590141,3765.2,3764.6,4.224]
[1753130903708,2.65604249,3765.0,3764.4,4.223]
[1753130903868,0.4347,3764.9,3764.4,4.223]
[1753130904068,2.65631086,3764.7,3764.4,4.223]
[1753130904283,3.09101086,3764.7,3764.4,4.223]
[1753130904776,0.4347,3764.6,3764.4,4.223]
[1753130905197,2.65639527,3764.5,3764.4,4.223]
[1753130905477,3.09111205,3764.5,3764.0,4.22]
[1753130905665,2.65673628,3764.1,3763.3,6.45208343]
[1753130905866,2.65700915,3763.7,3763.2,4.22]
[1753130906092,0.4347,3763.6,3763.2,4.22]
[1753130906274,3.09173246,3763.6,3763.2,4.22]
[1753130906674,0.4347,3763.5,3762.5,3.4123905]
[1753130906865,3.09180963,3763.5,3762.6,4.222]
[1753130907092,2.65736418,3763.2,3762.6,4.222]
[1753130907300,0.4347,3763.5,3762.6,4.222]
[1753130907501,2.65758444,3762.9,3762.1,0.8307]
[1753130907680,0.4347,3763.1,3762.2,4.24758019]
[1753130907897,0.4347,3763.1,3762.3,3.20793826]
[1753130907898,2.65745682,3763.0,3762.3,3.20793826]
[1753130908193,2.65745682,3763.0,3762.4,0.02657877]
[1753130908604,0.4347,3763.1,3762.4,2.68443003]
[1753130908605,3.09209494,3763.1,3762.4,2.68443003]
[1753130908768,2.65745458,3763.0,3762.4,0.02657877]
[1753130909101,0.1328,3762.7,3762.4,0.02657877]
[1753130909885,0.1328,3762.7,3762.6,0.55]
[1753130910085,0.1328,3763.0,3762.6,0.57657736]
[1753130910375,0.1328,3763.0,3762.6,0.55]
[1753130910570,0.1328,3763.0,3762.7,2.6576578]
[1753130910772,0.1328,3763.0,3762.8,2.68414782]
[1753130911269,0.1328,3763.0,3762.8,2.68414944]
[1753130911472,0.1328,3763.0,3762.8,0.02657595]
[1753130911986,0.1328,3763.0,3762.7,0.02657666]
[1753130912187,0.1328,3763.0,3762.8,4.213]
[1753130912188,0.4347,3762.9,3762.8,4.213]
[1753130912667,0.1328,3762.8,3762.5,0.55]
[1753130912867,3.753,3763.9,3762.8,2.65758654]
[1753130912868,0.1328,3763.0,3762.8,2.65758654]
[1753130913116,0.1328,3763.0,3762.8,2.68416249]
[1753130913298,0.1328,3763.0,3762.9,2.65752478]
[1753130913669,0.1328,3763.0,3762.8,0.02657595]
[1753130914188,0.1328,3763.0,3762.8,2.68415351]
[1753130914714,0.1328,3763.0,3762.8,0.02657595]
[1753130914888,0.1328,3763.0,3762.6,4.213]
[1753130915418,0.1328,3763.0,3762.9,0.7]
[1753130916501,3.40987749,3763.9,3762.9,0.7]
[1753130916502,0.3765196,3764.2,3763.3,2.65718491]
[1753130916675,0.4347,3764.1,3763.4,4.209]
[1753130916870,2.6568238,3763.9,3763.5,4.23957101]
[1753130917112,0.4347,3763.8,3763.5,4.213]
[1753130917692,0.4347,3763.8,3763.5,6.87009642]
[1753130917901,0.4347,3763.8,3763.0,0.55]
[1753130918208,0.4347,3763.8,3763.3,2.65723401]
[1753130918406,0.4347,3763.8,3763.4,0.02657171]
[1753130918581,0.4347,3763.7,3763.5,4.21]
[1753130918786,0.4347,3763.6,3763.5,4.21]
[1753130919291,0.30915303,3763.8,3763.5,4.21]
[1753130919503,0.4347,3764.0,3763.5,4.21]
[1753130919690,0.4347,3763.9,3763.5,4.21]
[1753130920019,0.4347,3763.8,3763.5,4.21]
[1753130920576,0.4347,3763.7,3762.9,0.7]
[1753130920781,2.65715474,3763.5,3763.0,4.23457454]
[1753130921000,0.4347,3763.4,3763.1,4.208]
[1753130921318,3.09187689,3763.4,3763.1,4.208]
[1753130921488,0.4347,3763.3,3763.1,4.208]
[1753130921879,0.4347,3763.2,3762.9,0.7]
[1753130922196,0.4347,3763.2,3763.0,4.207]
[1753130923775,2.65745415,3763.0,3762.9,0.7]
[1753130924085,3.09215415,3763.0,3762.9,0.7]
[1753130924291,2.65781469,3762.5,3762.1,0.02658089]
[1753130924503,3.42469287,3762.6,3761.9,0.02758231]
[1753130924674,2.65785267,3762.5,3762.0,4.203]
[1753130924880,1.04295455,3762.5,3761.9,0.001]
[1753130925082,2.65816055,3762.0,3761.9,0.001]
[1753130925501,3.85976055,3762.0,3761.9,0.001]
[1753130927017,6.85976055,3762.0,3761.9,0.001]
[1753130927207,11.06276055,3762.0,3761.9,0.001]
[1753130927605,6.85976055,3762.0,3761.9,0.001]
[1753130927922,12.01354424,3762.0,3761.9,0.001]
[1753130931992,12.01254424,3762.0,3761.9,0.001]
[1753130932446,9.01254424,3762.0,3761.9,0.001]
[1753130932728,1.2533,3762.4,3761.9,0.001]
[1753130932932,2.65816055,3762.0,3761.9,0.001]
[1753130933271,2.65794859,3762.3,3761.9,0.001]
[1753130933760,0.792,3762.4,3761.9,0.001]
[1753130933761,2.65802286,3762.2,3761.9,0.001]
[1753130934111,2.65813565,3762.1,3761.9,0.001]
[1753130934547,2.65816055,3762.0,3761.9,0.001]
[1753130935061,0.4613,3762.8,3762.0,0.7896]
[1753130935229,2.79096055,3762.0,3761.9,0.001]
[1753130935433,0.1328,3762.0,3761.9,0.001]
[1753130936054,0.1328,3762.0,3761.9,0.701]
[1753130936940,2.79096055,3762.0,3761.9,0.701]
[1753130937419,3.25226055,3762.0,3761.9,0.701]
[1753130938471,0.1328,3762.0,3761.9,4.18543121]
[1753130938652,0.8195,3763.5,3762.0,0.55]
[1753130938839,0.8195,3763.5,3761.9,2.64427453]
[1753130938840,0.4613,3763.2,3761.9,1.9599]
[1753130939045,2.65738354,3763.1,3762.2,2.65801391]
[1753130939257,3.43066642,3763.0,3762.3,2.65794528]
[1753130939458,2.65753157,3762.9,3762.3,2.65794528]
[1753130939657,0.77316835,3763.0,3762.2,2.68457388]
[1753130940165,2.65756997,3762.9,3762.2,2.68457388]
[1753130940371,2.65772477,3762.7,3762.3,4.205]
[1753130940554,2.65772477,3762.7,3762.1,0.02658089]
[1753130940758,2.6578073,3762.5,3761.9,0.701]
[1753130940975,0.4613,3762.4,3761.9,0.001]
[1753130941173,2.6580264,3762.2,3761.9,0.001]
[1753130941369,2.65809277,3762.1,3761.9,0.001]
[1753130941572,2.65816055,3762.0,3761.9,0.001]
[1753130941871,3.11946055,3762.0,3761.9,0.001]
[1753130943053,6.86165617,3762.8,3761.9,0.001]
[1753130943054,1.13136835,3763.0,3761.9,0.001]
[1753130943388,0.4613,3762.4,3761.9,0.001]
[1753130943674,3.11932175,3762.2,3761.9,0.001]
[1753130943876,2.65816055,3762.0,3761.9,0.001]
[1753130944237,3.11946055,3762.0,3761.9,0.001]
[1753130946381,0.4613,3763.1,3761.9,0.001]
[1753130946592,3.89976055,3762.0,3761.9,0.001]
[1753130947678,3.43846055,3762.0,3761.9,0.001]
[1753130947839,0.4613,3762.3,3761.9,0.001]
[1753130948352,2.65807787,3762.2,3761.9,0.001]
[1753130948752,2.65791003,3762.4,3761.9,0.001]
[1753130948941,2.65809074,3762.1,3761.9,0.001]
[1753130949342,2.65802311,3762.2,3761.9,0.001]
[1753130949570,0.4613,3762.4,3761.9,0.001]
[1753130949883,2.65816055,3762.0,3761.9,0.001]
[1753130950242,3.11946055,3762.0,3761.9,0.001]
[1753130951878,3.89976055,3762.0,3761.9,0.001]
[1753130952053,6.89976055,3762.0,3761.9,0.001]
[1753130952779,11.11176055,3762.0,3761.9,0.001]
[1753130952975,12.76891149,3762.0,3761.9,0.001]
[1753130957847,8.09561149,3762.0,3761.9,0.001]
[1753130958078,12.75201149,3762.0,3761.9,0.001]
[1753130958381,13.93714678,3762.0,3761.9,1e-08]
[1753130958584,13.93714678,3762.0,3761.1,0.001]
[1753130958585,3.46552593,3761.2,3761.1,0.001]